bitfinex/quotes_ETHUSD_20250623
["timestamp","ask_amount","ask_price","bid_price","bid_amount"]
[1750693485647,1.03383726,2264.4,2264.1,4.4166947]
[1750693485937,1.03383726,2264.6,2264.1,4.4166947]
[1750693486100,1.04274503,2264.5,2264.0,6.67284636]
[1750693486431,1.04274503,2264.4,2264.0,6.67284636]
[1750693486601,1.04274503,2264.3,2264.1,4.41675241]
[1750693486803,1.04274503,2264.6,2264.2,4.41653496]
[1750693487003,1.04274503,2264.5,2264.2,4.41647568]
[1750693487230,1.04274503,2264.8,2264.2,4.41643045]
[1750693487419,8.49256818,2264.9,2264.0,2.256]
[1750693487420,1.04274503,2264.7,2264.3,4.41636024]
[1750693487619,8.49256818,2264.9,2264.3,4.41636024]
[1750693487620,1.04274503,2264.6,2264.3,4.41636024]
[1750693487943,1.04274503,2264.8,2264.3,6.67236024]
[1750693488114,1.04274503,2264.7,2264.3,6.67236024]
[1750693488438,1.04274503,2264.6,2264.3,2.256]
[1750693488673,1.04274503,2264.5,2264.3,2.256]
[1750693488804,1.04274503,2264.8,2264.3,2.256]
[1750693489003,1.04274503,2264.7,2264.3,2.256]
[1750693489244,1.04274503,2264.6,2264.3,2.256]
[1750693489428,1.04274503,2264.5,2264.3,2.256]
[1750693489600,1.04274503,2264.7,2264.3,2.256]
[1750693489805,1.04274503,2264.6,2264.2,4.41640316]
[1750693490113,1.04274503,2264.5,2264.2,6.67240316]
[1750693490337,1.04274503,2264.4,2264.3,4.41630588]
[1750693490501,1.04274503,2264.6,2264.3,4.41630588]
[1750693490703,1.04274503,2264.5,2264.3,4.41630588]
[1750693491004,1.04274503,2264.4,2264.3,4.41630588]
[1750693491214,1.04274503,2264.6,2264.3,4.41630588]
[1750693491429,1.04274503,2264.5,2264.2,6.6724526]
[1750693491742,1.04274503,2264.4,2264.3,4.41637592]
[1750693492816,1.04274503,2264.4,2264.2,11.08887026]
[1750693493002,1.04274503,2264.3,2264.2,6.67241627]
[1750693493203,1.04274503,2264.6,2264.2,6.67240953]
[1750693493407,1.04274503,2264.5,2263.6,0.7737]
[1750693493605,12.18898928,2264.7,2263.6,0.7737]
[1750693493606,1.83214503,2264.4,2263.9,4.41702422]
[1750693493836,1.04274503,2264.3,2263.9,4.41702422]
[1750693494037,1.04274503,2264.2,2263.9,4.41702422]
[1750693494253,1.04274503,2264.1,2263.8,4.41723474]
[1750693494408,1.04274503,2264.3,2264.2,4.41657097]
[1750693494608,1.04274503,2264.3,2264.0,4.41684968]
[1750693494804,1.04274503,2264.2,2264.0,4.41678891]
[1750693495039,0.7894,2264.4,2264.1,4.41676604]
[1750693495212,1.04416246,2264.3,2264.0,14.47187675]
[1750693495417,1.04416246,2264.2,2264.0,14.47187675]
[1750693495629,1.04414905,2264.1,2264.0,14.47179372]
[1750693495834,1.04414905,2264.3,2264.0,14.47179372]
[1750693496143,1.04414905,2264.2,2264.1,12.20976604]
[1750693496303,1.04414905,2264.3,2264.1,12.20976604]
[1750693496504,1.04414905,2264.2,2264.1,12.20976604]
[1750693496702,1.04414905,2264.2,2263.6,4.41772248]
[1750693496926,1.04414905,2264.1,2263.7,10.047]
[1750693497136,1.04414905,2264.3,2264.0,4.41678092]
[1750693497336,1.04414905,2264.2,2264.1,4.41676604]
[1750693497725,1.04414905,2264.2,2264.0,4.41686099]
[1750693497901,1.04414905,2264.1,2264.0,4.41686099]
[1750693498106,0.7894,2264.4,2264.1,4.41674868]
[1750693498107,1.04414905,2264.3,2264.1,4.41674868]
[1750693498306,1.04414905,2264.2,2264.0,4.41685058]
[1750693498630,1.04414905,2264.1,2264.0,4.41685058]
[1750693498839,1.04414905,2264.3,2264.1,4.41668253]
[1750693499141,1.04414905,2264.2,2264.0,4.41681477]
[1750693499317,1.04414905,2264.1,2264.0,4.41681477]
[1750693499518,1.04414905,2264.3,2264.0,4.41681477]
[1750693499744,1.04414905,2264.2,2264.1,4.41676604]
[1750693500147,1.04414905,2264.2,2263.8,12.20328318]
[1750693500309,1.04414905,2264.1,2263.9,4.41705213]
[1750693500503,0.8065,2264.7,2264.0,7.79]
[1750693500707,2.12634768,2264.6,2264.0,7.79]
[1750693500908,1.04569768,2264.5,2264.1,7.789]
[1750693501105,11.93395621,2264.3,2263.0,11.433]
[1750693501323,8.77656586,2264.2,2263.4,4.41803437]
[1750693501567,1.04569768,2264.1,2263.1,10.043]
[1750693501769,1.04569768,2264.0,2263.8,4.41726931]
[1750693502075,1.04569768,2263.9,2263.7,4.41746447]
[1750693502249,1.04569768,2263.8,2263.6,4.41769121]
[1750693502480,1.04569768,2263.7,2263.2,4.41842655]
[1750693502642,1.04569768,2263.6,2263.2,4.41842655]
[1750693502829,11.13725621,2263.6,2262.6,0.7692]
[1750693503032,0.7901,2263.4,2262.4,2.256]
[1750693503260,0.7901,2263.2,2262.2,2.256]
[1750693503428,0.7901,2263.2,2262.2,6.67638833]
[1750693503627,0.7901,2263.2,2262.2,2.256]
[1750693503831,11.13725621,2262.7,2261.8,10.612]
[1750693504033,0.8022,2262.9,2261.9,2.256]
[1750693504331,0.8022,2262.9,2262.5,4.41973153]
[1750693504531,0.8022,2262.9,2261.9,2.256]
[1750693504532,0.8022,2262.9,2262.2,4.42038394]
[1750693504728,1.04533538,2262.6,2262.3,2.223]
[1750693505166,1.04533538,2262.6,2262.3,6.64319782]
[1750693505348,1.04533538,2262.6,2262.5,4.4198895]
[1750693505545,0.8022,2263.3,2262.6,4.41959841]
[1750693505748,0.8022,2263.3,2262.6,12.23259841]
[1750693505946,0.8022,2263.3,2262.6,7.813]
[1750693506194,0.8022,2263.3,2262.6,12.2326881]
[1750693506391,0.8022,2263.3,2262.7,2.223]
[1750693506760,11.93945621,2263.3,2262.6,2.223]
[1750693506951,1.19394562,2263.2,2262.4,4.41998844]
[1750693507147,1.19394562,2263.2,2262.1,14.42059485]
[1750693507361,1.84143785,2263.1,2262.2,14.45445711]
[1750693507560,1.84143785,2263.1,2262.4,4.41998835]
[1750693507883,1.84143785,2263.1,2262.6,4.41967018]
[1750693508079,0.5,2262.9,2262.4,4.41992575]
[1750693508270,0.5,2262.9,2262.5,4.41974759]
[1750693508472,0.5,2262.9,2262.3,4.42028024]
[1750693508667,1.84143785,2263.1,2262.0,10.0]
[1750693508971,8.52696818,2263.1,2262.3,4.4201731]
[1750693509282,10.49339062,2263.1,2262.4,4.4198933]
[1750693509874,10.49339062,2263.1,2262.4,4.42005181]
[1750693510188,10.49339062,2263.1,2262.3,4.42019275]
[1750693510790,11.13725621,2262.8,2261.7,2.224]
[1750693511086,1.92972562,2262.7,2261.9,4.42098165]
[1750693511385,1.92972562,2262.7,2261.8,15.03314387]
[1750693511561,1.92972562,2262.7,2261.9,4.42103606]
[1750693511757,2.37244938,2262.7,2261.8,17.2572368]
[1750693511958,1.30669818,2262.6,2261.8,12.836]
[1750693512288,0.816,2262.5,2261.8,12.836]
[1750693513371,0.816,2262.5,2261.9,4.42089908]
[1750693513575,0.816,2262.5,2262.0,4.42073227]
[1750693514008,0.816,2262.5,2262.0,4.4207602]
[1750693514210,0.816,2262.5,2261.9,5.20926193]
[1750693514414,0.816,2262.8,2262.3,4.42015538]
[1750693514604,0.816,2262.8,2262.2,2.224]
[1750693515003,0.816,2262.8,2262.3,4.42019555]
[1750693515215,0.816,2262.8,2262.0,4.42072678]
[1750693515429,11.95325621,2262.8,2262.1,2.224]
[1750693515752,0.816,2262.1,2260.0,0.7882]
[1750693515891,0.816,2262.1,2259.7,0.26741577]
[1750693515892,11.13725621,2260.7,2259.7,1.05561577]
[1750693516085,0.816,2260.9,2259.8,4.42517036]
[1750693516324,0.816,2260.9,2259.9,10.15]
[1750693516532,0.816,2260.9,2260.5,4.42377333]
[1750693516742,0.816,2260.9,2260.0,4.42477876]
[1750693516942,0.816,2260.9,2260.1,10.0]
[1750693517115,0.816,2260.9,2260.4,4.42385314]
[1750693517293,0.816,2260.9,2260.0,14.42477617]
[1750693517631,0.816,2260.9,2260.1,10.147]
[1750693517827,0.816,2260.9,2260.4,4.42387085]
[1750693518030,0.816,2260.9,2260.5,4.42379348]
[1750693518531,0.816,2260.9,2260.6,4.42354121]
[1750693518691,0.816,2260.9,2260.5,4.42369306]
[1750693518894,0.816,2260.9,2260.4,4.42389454]
[1750693519233,0.816,2260.9,2260.1,10.147]
[1750693519527,0.816,2260.9,2260.4,4.42390871]
[1750693519729,0.816,2260.9,2260.5,4.42374858]
[1750693520048,0.816,2260.9,2260.6,4.42357474]
[1750693520232,0.816,2260.9,2260.4,4.42392902]
[1750693520438,0.7723,2261.3,2261.2,4.42232213]
[1750693520637,2.10191,2261.8,2261.2,2.225]
[1750693520827,0.7723,2261.8,2261.2,12.225]
[1750693521024,0.7723,2261.8,2261.3,4.42210421]
[1750693521338,0.7723,2261.8,2261.2,2.225]
[1750693521742,0.8014,2262.2,2261.6,4.42155737]
[1750693521933,0.8014,2262.2,2261.8,4.42113503]
[1750693522128,0.8014,2262.2,2261.9,4.42105795]
[1750693522466,0.8059,2262.8,2262.3,4.42017641]
[1750693522605,0.8059,2262.8,2262.2,2.225]
[1750693522808,0.8059,2262.8,2262.4,4.41989897]
[1750693523032,0.8059,2262.8,2262.5,4.41984632]
[1750693523206,0.45003187,2263.1,2262.5,4.41984632]
[1750693523409,12.38458808,2263.1,2262.2,2.225]
[1750693523641,1.23845881,2263.0,2262.3,4.42024445]
[1750693523846,1.23845881,2263.0,2262.4,4.41998303]
[1750693524045,1.24733187,2263.1,2262.4,4.41998303]
[1750693524253,0.7973,2263.1,2262.4,4.41998303]
[1750693524651,0.7973,2263.1,2262.4,4.41996671]
[1750693524652,1.2369927,2263.1,2262.4,4.41996671]
[1750693524850,0.7973,2263.1,2262.7,4.41949695]
[1750693525460,0.7973,2263.1,2262.5,4.41978161]
[1750693525679,0.7973,2263.1,2262.2,6.64547315]
[1750693525963,11.93455621,2263.1,2262.2,6.64536793]
[1750693526166,11.93455621,2263.1,2262.3,4.42026797]
[1750693526167,1.19345562,2263.0,2262.3,4.42026797]
[1750693526520,0.7716,2262.9,2262.3,4.42017066]
[1750693526933,0.7716,2262.9,2262.4,4.42004894]
[1750693527133,0.7716,2262.9,2262.3,4.4200977]
[1750693527452,0.7716,2262.9,2262.4,4.42008486]
[1750693527621,0.7716,2262.9,2261.9,6.64589128]
[1750693527817,0.7716,2262.9,2262.2,4.42036416]
[1750693528050,0.7716,2262.9,2262.4,4.41997049]
[1750693528257,0.7716,2262.9,2262.3,2.225]
[1750693528960,0.7716,2262.9,2262.1,2.225]
[1750693529546,0.7716,2262.9,2262.4,4.42003736]
[1750693529749,0.99591683,2262.9,2262.1,6.64560978]
[1750693529918,0.99591683,2262.9,2262.2,4.42038869]
[1750693530114,0.99591683,2262.9,2262.2,4.42037195]
[1750693530360,0.99591683,2262.9,2262.1,6.64555048]
[1750693530526,0.99591683,2262.9,2262.1,2.225]
[1750693530857,0.8726785,2262.8,2262.1,6.64565407]
[1750693531230,1.90167771,2262.8,2262.0,2.225]
[1750693531645,1.90167771,2262.8,2262.0,6.64579457]
[1750693531846,1.90167771,2262.8,2262.0,2.225]
[1750693532046,1.02899921,2262.7,2262.0,2.225]
[1750693532367,1.02899921,2262.6,2262.0,6.64585029]
[1750693532668,1.02899921,2262.5,2262.0,2.225]
[1750693532859,1.02899921,2262.7,2262.0,6.64585071]
[1750693533062,1.02899921,2262.6,2261.4,0.7879]
[1750693533242,12.93785542,2262.5,2261.5,12.225]
[1750693533444,12.93785542,2262.5,2261.5,2.225]
[1750693533445,0.7716,2262.3,2261.5,2.225]
[1750693533685,1.02899921,2262.2,2261.5,2.225]
[1750693533971,1.02899921,2262.1,2261.5,2.225]
[1750693534133,1.02899921,2262.0,2261.5,2.225]
[1750693534332,1.02899921,2261.9,2261.5,6.64673165]
[1750693534534,1.02899921,2262.1,2261.5,6.6467633]
[1750693534774,1.90498595,2262.0,2261.5,2.225]
[1750693534948,1.02899921,2261.9,2261.5,2.225]
[1750693535148,0.8176,2261.8,2261.2,14.42234385]
[1750693535360,1.84659921,2261.8,2261.1,10.623]
[1750693535662,0.87598674,2262.0,2260.7,0.8235]
[1750693535663,0.8176,2261.6,2260.7,4.42329078]
[1750693535859,9.71761413,2261.5,2260.8,4.4230891]
[1750693536034,1.02899921,2261.4,2260.7,2.256]
[1750693536245,1.02899921,2261.3,2260.7,2.256]
[1750693536479,1.02899921,2261.2,2260.7,12.256]
[1750693536660,0.757,2261.3,2260.5,4.42367365]
[1750693536864,1.02899921,2261.2,2260.6,2.256]
[1750693537063,1.02899921,2261.1,2260.3,10.622]
[1750693537258,0.757,2261.3,2260.7,4.4232959]
[1750693537259,1.02899921,2261.2,2260.7,4.4232959]
[1750693537460,1.02899921,2261.1,2260.6,4.42350837]
[1750693537645,1.02899921,2261.2,2260.6,6.67950837]
[1750693537847,1.02899921,2261.2,2259.8,0.7625]
[1750693537848,1.78599921,2261.1,2259.8,0.7625]
[1750693538168,13.11794216,2261.0,2260.1,14.42445581]
[1750693538361,13.11794216,2261.0,2260.1,10.0]
[1750693538362,0.808,2260.8,2260.1,10.0]
[1750693538537,1.83699921,2261.1,2260.1,10.0]
[1750693538739,1.02899921,2261.0,2260.6,4.42343891]
[1750693538951,1.02899921,2261.0,2260.9,4.42301738]
[1750693539156,0.808,2261.1,2260.5,2.256]
[1750693539366,0.808,2261.1,2260.9,4.42301008]
[1750693539694,0.808,2261.1,2260.7,4.42332302]
[1750693539895,0.808,2261.1,2260.7,4.42323835]
[1750693540074,0.808,2261.1,2260.8,4.42321064]
[1750693540259,0.808,2261.1,2260.4,10.0]
[1750693540459,1.83699921,2261.1,2260.5,6.68070248]
[1750693540784,1.03660683,2261.1,2260.7,4.42338149]
[1750693540957,1.83699921,2261.1,2260.6,4.42355128]
[1750693541158,0.808,2261.1,2260.6,4.42355128]
[1750693541359,1.83699921,2261.1,2260.6,4.42355128]
[1750693541589,0.808,2261.1,2260.7,4.42338286]
[1750693541793,1.83699921,2261.1,2260.7,4.42338286]
[1750693541958,0.808,2261.1,2260.7,4.42338286]
[1750693542158,1.83699921,2261.1,2260.7,4.42338286]
[1750693542383,0.808,2261.1,2260.8,4.42312268]
[1750693542588,0.808,2261.1,2260.7,4.42324485]
[1750693542589,1.83699921,2261.1,2260.7,4.42324485]
[1750693542788,1.83699921,2261.1,2260.6,4.42351382]
[1750693542789,0.808,2261.1,2260.6,4.42351382]
[1750693542969,1.02899921,2261.1,2260.2,10.0]
[1750693543171,1.80019921,2261.0,2260.2,10.0]
[1750693543397,1.80019921,2261.0,2260.4,14.4238812]
[1750693543691,1.80019921,2261.0,2260.5,4.42379024]
[1750693543926,1.02899921,2260.9,2260.5,4.42378753]
[1750693544210,1.80019921,2261.0,2260.7,4.4233895]
[1750693544395,0.7712,2261.0,2260.7,4.4233895]
[1750693544600,0.7712,2261.0,2260.7,4.42335688]
[1750693544804,0.7712,2261.0,2260.4,12.257]
[1750693544982,0.7712,2261.0,2260.4,16.68098706]
[1750693545184,0.7712,2261.0,2260.4,10.0]
[1750693545509,1.02899921,2261.1,2260.5,14.54377562]
[1750693545714,1.02899921,2261.1,2260.8,4.42311333]
[1750693545917,1.02899921,2261.1,2260.7,4.42331065]
[1750693546598,1.02899921,2261.1,2260.5,10.12]
[1750693546599,1.02899921,2261.1,2260.8,4.42312278]
[1750693546913,1.02899921,2261.1,2260.7,4.42328904]
[1750693547212,1.02899921,2261.0,2260.5,6.68068332]
[1750693547572,1.02899921,2260.9,2260.5,2.257]
[1750693547774,0.8258,2260.9,2259.7,1.06811577]
[1750693547986,1.02899921,2260.8,2260.1,10.0]
[1750693548171,0.8258,2260.9,2260.4,4.42380964]
[1750693548395,1.85479921,2260.9,2260.5,4.42379977]
[1750693548599,1.85479921,2260.9,2260.4,4.42389401]
[1750693548600,0.8258,2260.9,2260.4,4.42389401]
[1750693548795,2.14004349,2260.9,2260.3,2.257]
[1750693549008,1.11104428,2260.9,2260.2,4.42421886]
[1750693549211,1.02899921,2260.8,2260.1,2.257]
[1750693549612,1.02899921,2260.7,2260.1,2.257]
[1750693549812,1.02899921,2260.8,2260.1,6.68149106]
[1750693550112,1.02899921,2260.8,2259.9,10.8178]
[1750693550313,1.02899921,2260.8,2260.0,4.42461128]
[1750693550624,1.02899921,2260.7,2260.2,4.42426896]
[1750693550779,1.02899921,2260.8,2260.3,4.42410891]
[1750693550978,1.02899921,2260.7,2260.2,4.42428709]
[1750693551178,1.02899921,2260.8,2260.0,12.257]
[1750693551637,0.8258,2260.9,2260.6,4.4235208]
[1750693552103,0.8258,2260.9,2260.8,4.42321302]
[1750693552447,0.7905,2261.3,2260.8,4.42309732]
[1750693552734,0.7905,2261.3,2260.5,12.257]
[1750693552937,0.7905,2261.3,2260.9,4.42286655]
[1750693553141,1.02899921,2261.5,2261.4,4.42203944]
[1750693553340,1.02899921,2261.5,2260.8,0.7661]
[1750693553341,1.81429921,2261.9,2261.3,6.67918489]
[1750693553513,0.7853,2261.9,2261.7,4.42140807]
[1750693553714,0.7853,2261.9,2261.2,10.0]
[1750693554040,0.7853,2261.9,2261.4,4.42187211]
[1750693554246,0.7853,2261.9,2261.5,4.42172728]
[1750693554416,0.7853,2261.9,2261.3,2.257]
[1750693554612,0.7853,2261.9,2261.6,4.42148574]
[1750693554811,0.7853,2261.9,2261.5,4.42174989]
[1750693555341,0.7853,2261.9,2261.4,4.42193283]
[1750693555550,0.7853,2261.9,2261.5,4.42182726]
[1750693556202,0.7853,2261.9,2261.4,4.42193957]
[1750693556729,0.7853,2261.9,2261.3,4.42213584]
[1750693557043,0.7853,2261.9,2261.1,12.257]
[1750693557242,1.23710264,2261.8,2261.1,12.257]
[1750693557444,1.02899921,2261.7,2261.1,2.257]
[1750693557745,1.02899921,2261.7,2261.1,6.67954198]
[1750693558059,1.02899921,2261.8,2261.1,2.257]
[1750693558257,0.7853,2261.9,2261.5,4.42180998]
[1750693558414,0.7853,2261.9,2261.4,4.42189756]
[1750693558415,0.7853,2261.9,2261.4,4.42196373]
[1750693558922,1.81429921,2261.9,2261.3,4.4221548]
[1750693559145,1.81429921,2261.9,2261.1,2.257]
[1750693559146,0.7853,2261.9,2261.1,2.257]
[1750693559441,0.7853,2261.9,2261.3,4.42206303]
[1750693559644,0.7853,2261.9,2261.1,2.257]
[1750693559645,0.7853,2261.9,2261.1,12.257]
[1750693559847,1.84129921,2262.5,2261.8,4.4212574]
[1750693560048,8.54316818,2262.8,2262.4,4.42008486]
[1750693560212,8.54316818,2262.8,2262.2,10.101]
[1750693560213,9.397485,2262.8,2262.2,10.101]
[1750693560406,9.397485,2262.8,2262.2,2.257]
[1750693560407,1.02899921,2262.7,2262.2,2.257]
[1750693560721,1.02899921,2262.7,2262.1,4.42049484]
[1750693560925,0.8093,2262.3,2261.0,5.21976326]
[1750693561125,0.8093,2262.0,2260.9,4.42283578]
[1750693561324,11.13725621,2262.1,2260.9,4.42290508]
[1750693561325,0.8224,2261.7,2260.9,4.42290508]
[1750693561510,0.8224,2261.7,2260.8,2.257]
[1750693561511,1.02899921,2261.6,2260.8,2.257]
[1750693561713,1.85139921,2261.7,2261.0,4.42270594]
[1750693561910,1.02899921,2261.6,2260.2,10.626]
[1750693562117,11.13725621,2261.2,2260.2,12.883]
[1750693562369,2.89502483,2261.1,2260.3,4.42415829]
[1750693562516,1.02899921,2261.0,2260.3,4.42415829]
[1750693562713,1.02899921,2260.9,2260.3,4.42415829]
[1750693562918,1.02899921,2261.0,2260.2,2.257]
[1750693563210,1.02899921,2261.0,2260.4,4.42392624]
[1750693563411,1.02899921,2260.9,2260.3,4.42408266]
[1750693563747,1.79919921,2260.8,2260.3,4.42406287]
[1750693563961,0.7702,2260.8,2260.1,10.0]
[1750693564164,0.7702,2260.8,2260.4,4.42381998]
[1750693564367,0.7702,2260.8,2260.7,4.42340867]
[1750693564666,0.7702,2261.2,2260.3,0.8249]
[1750693564964,0.7702,2261.2,2260.8,4.42320961]
[1750693565174,1.02899921,2261.3,2260.9,2.264]
[1750693565332,0.8205,2261.6,2260.9,2.264]
[1750693565333,1.02899921,2261.4,2260.9,2.264]
[1750693565668,1.02899921,2261.3,2260.9,6.68699864]
[1750693565833,1.02899921,2261.5,2260.9,2.264]
[1750693566030,1.34691583,2261.4,2260.9,6.68701289]
[1750693566338,0.31791662,2261.4,2260.4,10.0]
[1750693566563,1.02899921,2261.4,2260.4,14.42382147]
[1750693566903,1.02899921,2261.4,2260.8,4.42306852]
[1750693567043,1.02899921,2261.3,2260.9,4.42300061]
[1750693567402,1.02899921,2261.4,2260.9,4.42299728]
[1750693567679,1.90498595,2261.3,2260.9,4.42285569]
[1750693567879,1.02899921,2261.4,2260.9,4.42285569]
[1750693568176,8.75986739,2261.5,2261.0,4.42268636]
[1750693568390,8.75986739,2261.5,2261.1,4.42261287]
[1750693568679,1.02899921,2261.4,2260.9,4.42291719]
[1750693568881,1.02899921,2261.4,2260.6,17.895]
[1750693568882,1.02899921,2261.4,2260.7,10.0]
[1750693569098,1.90498595,2261.3,2260.8,4.42318731]
[1750693569270,1.02899921,2261.4,2260.9,4.42289567]
[1750693569474,1.02899921,2261.4,2260.9,4.4229187]
[1750693569800,1.02899921,2261.3,2260.7,2.264]
[1750693569968,1.02899921,2261.2,2260.7,6.68740137]
[1750693570294,0.8173,2261.1,2260.7,6.68740137]
[1750693570500,0.8173,2261.1,2260.7,6.68732379]
[1750693570659,0.8173,2261.1,2260.8,4.42302708]
[1750693570861,0.8173,2261.1,2260.9,4.4228726]
[1750693571061,0.8135,2261.4,2261.0,4.42269848]
[1750693571289,2.69693603,2261.4,2261.0,4.42281601]
[1750693571496,2.69693603,2261.4,2260.8,2.264]
[1750693571701,2.69693603,2261.4,2261.0,4.42280933]
[1750693572074,1.02899921,2261.7,2261.3,4.42223499]
[1750693572310,1.82539921,2261.8,2261.5,4.42181011]
[1750693572458,1.82539921,2261.8,2261.3,2.264]
[1750693572459,1.82539921,2261.8,2261.4,4.42193998]
[1750693572964,1.82539921,2261.8,2261.3,6.68616784]
[1750693572965,0.7964,2261.8,2261.7,4.42145288]
[1750693573164,0.7964,2261.8,2261.3,6.68623083]
[1750693573165,0.7964,2261.8,2261.4,4.42192537]
[1750693573389,0.7964,2261.8,2261.5,4.42174289]
[1750693573592,0.7964,2261.8,2261.6,4.42163372]
[1750693573898,0.7964,2261.8,2261.6,4.42162906]
[1750693574084,0.7964,2261.8,2261.3,2.264]
[1750693574290,0.7964,2261.8,2261.6,4.42151569]
[1750693574486,0.7964,2261.8,2261.5,4.42171699]
[1750693574688,0.85272682,2261.8,2260.5,10.0]
[1750693574889,0.85272682,2261.8,2261.0,4.42263968]
[1750693575067,1.88172603,2261.8,2261.1,4.42262591]
[1750693575494,1.89273175,2261.8,2261.3,4.42221504]
[1750693575698,1.89273175,2261.8,2261.2,4.42233629]
[1750693576012,0.26918318,2261.7,2261.2,4.42239873]
[1750693576313,1.30918811,2261.7,2261.0,14.42270249]
[1750693576526,1.30918811,2261.7,2260.5,4.42362418]
[1750693576527,0.831,2261.6,2260.9,4.42291761]
[1750693576842,0.831,2261.6,2261.0,2.264]
[1750693577131,0.831,2261.6,2261.0,6.68671464]
[1750693577439,1.13029149,2261.6,2261.1,4.42261143]
[1750693577600,1.13029149,2261.6,2261.2,4.42242851]
[1750693577799,0.831,2261.6,2261.3,4.42215798]
[1750693578004,0.831,2261.6,2261.2,4.42233653]
[1750693578219,0.831,2261.6,2261.0,6.6867016]
[1750693578592,0.831,2261.6,2261.0,6.68664198]
[1750693578792,0.831,2261.6,2261.0,2.264]
[1750693578992,0.831,2261.6,2261.1,4.42260728]
[1750693579323,1.14656007,2261.6,2261.0,6.68672461]
[1750693579693,2.186565,2261.6,2261.0,6.68672461]
[1750693580023,1.14656007,2261.6,2261.0,6.68670678]
[1750693580226,2.186565,2261.6,2261.0,6.68670678]
[1750693580415,1.14656007,2261.6,2261.0,6.68666656]
[1750693580725,2.186565,2261.6,2261.1,4.42245805]
[1750693580889,1.14656007,2261.6,2261.1,4.42245805]
[1750693581084,2.186565,2261.6,2261.1,4.42245805]
[1750693581294,0.831,2261.6,2261.2,4.42225731]
[1750693581499,1.87100493,2261.6,2261.1,4.42250904]
[1750693581828,0.831,2261.6,2261.0,6.68676384]
[1750693582010,1.87100493,2261.6,2261.2,4.42241534]
[1750693582214,0.831,2261.6,2261.3,4.42207849]
[1750693582414,1.87100493,2261.6,2261.0,4.42272864]
[1750693582613,1.87100493,2261.6,2261.1,6.68661254]
[1750693582614,1.04000493,2261.5,2261.1,6.68661254]
[1750693582798,1.04000493,2261.5,2261.1,6.68645829]
[1750693583004,0.831,2261.6,2261.3,4.42211295]
[1750693583224,1.87100493,2261.6,2261.3,4.42211295]
[1750693583428,0.831,2261.6,2261.5,4.4218439]
[1750693583639,0.831,2261.6,2261.4,4.42195913]
[1750693583944,0.831,2261.6,2261.3,4.42215407]
[1750693584163,0.831,2261.6,2261.1,4.42249833]
[1750693584374,0.831,2261.6,2261.2,2.264]
[1750693584661,1.04000493,2261.5,2261.2,2.264]
[1750693585271,1.04000493,2261.5,2261.1,4.42249833]
[1750693585460,1.04000493,2261.5,2261.2,4.42240472]
[1750693585626,0.831,2261.6,2261.4,4.42190213]
[1750693585823,1.04000493,2261.7,2261.5,4.421727]
[1750693586143,1.04000493,2261.8,2261.5,4.42172377]
[1750693586349,1.04000493,2261.7,2261.5,4.42172377]
[1750693586677,7.73086818,2262.0,2261.5,2.264]
[1750693586959,7.73086818,2262.0,2261.7,4.42136335]
[1750693587121,7.73086818,2262.0,2261.6,11.10726324]
[1750693587322,7.73086818,2262.0,2261.6,6.68563162]
[1750693587647,7.73086818,2262.0,2261.7,4.42145137]
[1750693587957,7.73086818,2262.0,2261.6,6.68553]
[1750693588262,7.73086818,2262.0,2261.7,4.42144098]
[1750693588562,7.73086818,2262.0,2261.6,6.6855476]
[1750693588966,7.73086818,2262.0,2261.7,4.42142636]
[1750693589403,7.73086818,2262.0,2261.6,6.68554024]
[1750693589894,7.73086818,2262.0,2261.9,4.42106193]
[1750693590098,7.73086818,2262.5,2262.4,4.42008486]
[1750693590397,0.8046,2262.8,2262.3,6.6832773]
[1750693590700,0.8046,2262.8,2262.6,4.41956974]
[1750693591072,0.8046,2262.8,2262.5,4.41969691]
[1750693591260,0.8046,2262.8,2262.5,4.41978474]
[1750693591456,8.77087311,2263.2,2262.7,4.41949882]
[1750693591667,0.95754731,2263.1,2262.5,4.4198895]
[1750693591874,0.95754731,2263.1,2262.6,2.263]
[1750693592485,7.73086818,2263.2,2262.9,4.41894352]
[1750693592685,7.73086818,2263.2,2262.6,2.263]
[1750693592861,7.73086818,2263.2,2262.9,4.41909338]
[1750693593060,7.73086818,2263.2,2263.0,4.41880634]
[1750693593380,1.04000493,2263.9,2263.4,4.4179779]
[1750693593559,0.7911,2264.0,2263.6,4.41763377]
[1750693593962,0.7911,2264.0,2263.3,6.68132536]
[1750693594192,0.7911,2264.0,2263.5,4.41781318]
[1750693594388,0.7911,2264.0,2263.6,4.41771886]
[1750693594861,0.7911,2264.0,2263.3,14.41830103]
[1750693595091,0.7911,2264.0,2263.6,4.4177019]
[1750693595494,0.7911,2264.0,2263.4,7.41941673]
[1750693595681,0.7572,2264.3,2263.8,4.41725265]
[1750693595886,1.70951195,2264.3,2263.8,4.41725265]
[1750693596388,1.70951195,2264.3,2263.7,4.417443]
[1750693596595,1.70951195,2264.3,2263.4,7.41935366]
[1750693596906,11.13725621,2264.0,2263.5,2.236]
[1750693597405,0.8204,2264.1,2263.5,2.236]
[1750693597566,0.8204,2264.1,2263.6,4.41770222]
[1750693597966,0.8204,2264.1,2263.5,6.653849]
[1750693598269,0.8204,2264.1,2263.7,4.41751165]
[1750693598507,0.8204,2264.1,2263.6,4.41770604]
[1750693598508,0.8204,2264.1,2263.6,4.41767056]
[1750693598811,11.13725621,2263.9,2263.3,4.41831227]
[1750693599108,0.833,2263.8,2263.1,12.236]
[1750693599309,0.833,2263.8,2263.2,4.41834497]
[1750693599516,0.833,2263.8,2263.1,2.236]
[1750693599722,0.833,2263.8,2263.5,4.41784028]
[1750693600224,0.833,2263.8,2263.4,4.41802263]
[1750693600521,0.833,2263.8,2263.5,4.41792803]
[1750693600813,0.833,2263.8,2263.6,4.41773602]
[1750693601811,0.8113,2264.1,2263.4,4.41801667]
[1750693601980,1.96794244,2264.0,2263.4,4.41801667]
[1750693602179,1.96794244,2264.0,2262.9,7.832]
[1750693602180,0.8113,2263.8,2262.6,4.41950704]
[1750693602390,0.8113,2263.5,2262.9,4.41894205]
[1750693602592,0.8113,2263.5,2262.5,0.8296]
[1750693602884,0.8113,2263.5,2262.8,4.41930336]
[1750693603217,2.00615562,2263.5,2262.7,4.41937545]